bitfinex-derivatives/quotes_SOLF0:USTF0_20250101
["timestamp","ask_amount","ask_price","bid_price","bid_amount"]
[1735743564087,2.6232,190.98,190.96,8.46540428]
[1735743564289,8.46540428,191.01,190.94,8.46540428]
[1735743565590,2.6233,190.97,190.94,8.46540428]
[1735743566989,8.46540428,191.01,190.94,8.46540428]
[1735743567292,2.623,190.99,190.94,8.46540428]
[1735743568492,2.623,190.99,190.95,2.6235]
[1735743569488,8.46540428,191.01,190.94,8.46540428]
[1735743569690,2.6232,190.98,190.94,11.08910428]
[1735743573600,8.46540428,191.01,190.94,11.08910428]
[1735743573891,2.6233,190.97,190.94,11.08910428]
[1735743574599,2.6234,190.97,190.94,8.46540428]
[1735743576503,2.623,190.99,190.95,2.6235]
[1735743592521,15.46276311,191.03,190.94,8.46540428]
[1735743592721,2.6233,190.97,190.94,8.46540428]
[1735743594424,2.6233,190.97,190.94,11.08910428]
[1735743597326,2.6232,190.98,190.94,11.08910428]
[1735743599232,2.623,190.99,190.96,2.6234]
[1735743600536,1.58,191.04,190.98,8.46540428]
[1735743600739,1.58,191.04,190.92,3.06]
[1735743600740,1.58,191.04,191.0,8.46540428]
[1735743601538,4.2023,191.04,191.0,11.08820428]
[1735743602932,4.2023,191.04,191.0,2.6228]
[1735743603238,4.2023,191.04,190.99,2.623]
[1735743604239,1.58,191.04,190.98,8.46540428]
[1735743604440,8.46540428,191.03,190.96,8.46540428]
[1735743605140,2.6228,191.01,190.96,11.08870428]
[1735743605635,2.6228,191.01,190.97,2.6232]
[1735743605836,1.58,191.04,190.98,8.46540428]
[1735743606038,10.59246718,191.06,190.98,8.46540428]
[1735743606342,8.46540428,191.05,191.01,2.6227]
[1735743607338,2.6221,191.06,191.01,2.6227]
[1735743607638,2.6221,191.06,191.0,8.46540428]
[1735743607639,2.6221,191.06,191.02,2.6226]
[1735743607840,2.6221,191.06,191.0,8.46540428]
[1735743608051,2.6221,191.06,191.01,2.6227]
[1735743608334,6.1208,191.07,191.0,8.46540428]
[1735743608539,2.6224,191.04,190.99,2.6229]
[1735743608940,8.46540428,191.05,190.99,2.6229]
[1735743609941,2.6225,191.03,190.98,8.46540428]
[1735743610142,8.46540428,191.05,191.0,2.6228]
[1735743610445,2.622,191.06,191.0,8.46540428]
[1735743611545,2.622,191.06,191.02,2.6225]
[1735743612742,2.6219,191.07,191.03,2.6224]
[1735743613042,9.95950428,191.09,191.02,8.46540428]
[1735743613839,2.6219,191.08,191.04,2.6223]
[1735743616844,2.6219,191.07,191.03,2.6224]
[1735743617041,9.95950428,191.09,191.03,2.6224]
[1735743617445,2.6219,191.08,191.03,2.6224]
[1735743617643,2.6219,191.08,191.02,8.46540428]
[1735743617644,2.6219,191.08,191.04,2.6222]
[1735743618846,2.6221,191.06,191.02,11.08800428]
[1735743620947,8.46540428,191.07,191.02,8.46540428]
[1735743621148,8.46540428,191.07,191.0,8.46540428]
[1735743621847,8.46540428,191.05,190.98,8.46540428]
[1735743622038,11.52540428,191.05,190.98,8.46540428]
[1735743622640,8.46540428,191.03,190.96,8.46540428]
[1735743622943,8.46540428,191.01,190.95,8.46540428]
[1735743624547,8.46540428,190.99,190.89,1.5166]
[1735743624747,2.6236,190.95,190.92,8.46540428]
[1735743625248,8.46540428,190.97,190.92,8.46540428]
[1735743625746,8.46540428,190.97,190.89,1.5166]
[1735743625946,8.46540428,190.97,190.91,8.46540428]
[1735743626947,1.559,191.02,190.93,8.46540428]
[1735743627155,8.46540428,190.99,190.93,8.46540428]
[1735743627452,2.6235,190.96,190.93,8.46540428]
[1735743630753,2.6233,190.97,190.93,8.46540428]
[1735743630952,8.46540428,190.99,190.93,8.46540428]
[1735743631946,8.46540428,190.97,190.91,8.46540428]
[1735743635554,8.46540428,190.97,190.88,2.6245]
[1735743635750,8.46540428,190.97,190.9,8.46540428]
[1735743636351,8.46540428,190.95,190.9,8.46540428]
[1735743637457,2.624,190.92,190.9,8.46540428]
[1735743637655,2.624,190.92,190.88,8.46540428]
[1735743637855,8.46540428,190.93,190.85,2.6248]
[1735743638158,8.46540428,190.93,190.87,8.46540428]
[1735743638959,2.6244,190.89,190.87,8.46540428]
[1735743640859,2.6243,190.9,190.87,8.46540428]
[1735743642461,1.5145,190.94,190.87,11.09000428]
[1735743642657,1.5145,190.94,190.89,8.46540428]
[1735743644260,2.6241,190.92,190.89,8.46540428]
[1735743644463,1.5145,190.94,190.89,8.46540428]
[1735743645466,2.6241,190.91,190.89,8.46540428]
[1735743648467,2.6244,190.89,190.87,8.46540428]
[1735743649269,2.6245,190.88,190.85,8.46540428]
[1735743650464,8.46540428,190.93,190.85,8.46540428]
[1735743650664,2.6244,190.89,190.87,8.46540428]
[1735743652864,2.6245,190.88,190.87,8.46540428]
[1735743653367,11.52540428,190.93,190.87,8.46540428]
[1735743653568,2.6244,190.89,190.87,8.46540428]
[1735743655068,2.6244,190.89,190.85,11.09030428]
[1735743656264,2.6245,190.88,190.85,2.6249]
[1735743656465,11.52540428,190.93,190.85,11.09030428]
[1735743656867,2.6245,190.89,190.85,11.09030428]
[1735743657263,8.46540428,190.89,190.83,2.6252]
[1735743657576,8.46540428,190.89,190.81,1.5505]
[1735743657577,8.46540428,190.87,190.82,8.46540428]
[1735743658468,2.6249,190.86,190.82,8.46540428]
[1735743659471,8.46540428,190.87,190.82,8.46540428]
[1735743659671,8.46540428,190.87,190.8,11.09100428]
[1735743659971,8.46540428,190.85,190.78,8.46540428]
[1735743660169,2.6254,190.82,190.78,11.09130428]
[1735743661279,8.46540428,190.85,190.79,2.6257]
[1735743661280,2.6252,190.84,190.79,2.6257]
[1735743662275,2.6252,190.83,190.79,2.6257]
[1735743662472,2.6252,190.83,190.78,11.09130428]
[1735743662774,8.46540428,190.83,190.78,8.46540428]
[1735743662972,2.6254,190.82,190.78,8.46540428]
[1735743663772,11.09090428,190.81,190.73,2.6264]
[1735743663972,11.09090428,190.81,190.75,8.46540428]
[1735743664575,11.09090428,190.81,190.75,11.09160428]
[1735743664778,2.6256,190.8,190.75,11.09160428]
[1735743665179,2.6256,190.8,190.75,2.6262]
[1735743665374,2.6256,190.8,190.76,8.46540428]
[1735743666474,2.6258,190.79,190.75,2.6262]
[1735743666677,2.6258,190.79,190.75,11.09160428]
[1735743667379,8.46540428,190.79,190.73,2.6265]
[1735743667574,8.46540428,190.79,190.73,11.09190428]
[1735743667774,8.46540428,190.79,190.73,8.46540428]
[1735743667969,2.6262,190.76,190.73,8.46540428]
[1735743668278,2.6262,190.76,190.71,11.09220428]
[1735743668480,8.46540428,190.77,190.7,1.5801]
[1735743668782,8.46540428,190.75,190.68,3.42859411]
[1735743668978,8.46540428,190.75,190.69,8.46540428]
[1735743670074,8.46540428,190.75,190.65,75.25238685]
[1735743670275,8.46540428,190.75,190.68,8.46540428]
[1735743670475,2.6267,190.73,190.68,11.09270428]
[1735743671076,1.5023,190.77,190.72,8.46540428]
[1735743671284,3.06,190.8,190.76,8.46540428]
[1735743671472,3.092,190.82,190.76,8.46540428]
[1735743671677,14.61740428,190.82,190.76,8.46540428]
[1735743672580,2.6256,190.81,190.76,11.09150428]
[1735743673580,14.61740428,190.82,190.76,11.09150428]
[1735743673779,2.6256,190.8,190.76,11.09150428]
[1735743677383,2.6254,190.82,190.78,8.46540428]
[1735743677585,3.06,190.84,190.78,8.46540428]
[1735743677982,5.6852,190.84,190.78,11.09120428]
[1735743678184,3.06,190.84,190.78,11.09120428]
[1735743678684,5.6851,190.84,190.79,2.6257]
[1735743679185,3.06,190.84,190.78,8.46540428]
[1735743679388,2.6252,190.83,190.78,11.09130428]
[1735743679885,2.6252,190.83,190.78,8.46540428]
[1735743679886,2.6254,190.82,190.78,8.46540428]
[1735743681481,2.6254,190.82,190.76,8.46540428]
[1735743681682,2.6254,190.82,190.77,2.626]
[1735743685588,2.6249,190.86,190.8,8.46540428]
[1735743685789,8.46540428,190.88,190.8,8.46540428]
[1735743686289,2.6249,190.86,190.8,11.09090428]
[1735743686491,2.6249,190.86,190.8,8.46540428]
[1735743687490,2.6249,190.86,190.81,2.6254]
[1735743687892,8.46540428,190.88,190.81,2.6254]
[1735743688092,2.6249,190.85,190.81,2.6254]
[1735743690992,2.6252,190.84,190.8,11.09100428]
[1735743691198,8.46540428,190.84,190.78,10.02500428]
[1735743691495,8.46540428,190.84,190.78,8.46540428]
[1735743691697,2.6255,190.81,190.78,8.46540428]
[1735743691892,8.46540428,190.82,190.76,8.46540428]
[1735743692489,8.46540428,190.84,190.78,8.46540428]
[1735743692896,11.09050428,190.84,190.79,2.6257]
[1735743693393,8.46540428,190.86,190.8,8.46540428]
[1735743693598,2.6248,190.87,190.82,2.6253]
[1735743694998,2.6248,190.86,190.82,2.6253]
[1735743695598,8.46540428,190.88,190.82,2.6253]
[1735743695798,8.46540428,190.9,190.84,8.46540428]
[1735743696301,11.09000428,190.88,190.83,2.6252]
[1735743700698,11.09000428,190.88,190.84,2.625]
[1735743700898,2.6244,190.89,190.84,2.625]
[1735743701299,2.6244,190.89,190.84,11.09040428]
[1735743701697,2.6244,190.89,190.85,2.6249]
[1735743702297,2.6241,190.91,190.87,2.6246]
[1735743705998,8.46540428,190.92,190.88,2.6245]
[1735743706303,8.25759616,190.98,190.9,8.46540428]
[1735743706505,8.46540428,190.97,190.9,8.46540428]
[1735743706904,11.08880428,190.97,190.92,2.6239]
[1735743707102,87.45903629,190.99,190.92,8.46540428]
[1735743707301,95.92444057,190.99,190.92,8.46540428]
[1735743707501,8.46540428,190.99,190.95,2.6235]
[1735743709005,11.08840428,190.99,190.94,2.6237]
[1735743709907,8.46540428,190.99,190.92,8.46540428]
[1735743710110,8.46540428,190.99,190.94,2.6237]
[1735743710301,8.46540428,191.01,190.94,8.46540428]
[1735743710701,8.46540428,191.01,190.97,2.6232]
[1735743711507,8.46540428,191.01,190.94,11.50540428]
[1735743712011,2.623,190.99,190.95,2.6235]
[1735743712211,8.46540428,191.01,190.95,2.6235]
[1735743712813,2.6227,191.02,190.96,8.46540428]
[1735743713711,8.46540428,191.01,190.96,8.46540428]
[1735743714910,10.08590428,191.03,190.98,2.623]
[1735743717111,10.08590428,191.03,190.96,11.08870428]
[1735743717509,2.6226,191.02,190.96,8.46540428]
[1735743717709,2.6226,191.02,190.98,2.6231]
[1735743718212,12.70840428,191.03,190.98,2.6231]
[1735743719113,8.46540428,191.03,190.99,2.623]
[1735743721214,8.46540428,191.03,190.94,3.04]
[1735743721411,2.6227,191.02,190.95,8.46540428]
[1735743721812,2.6227,191.02,190.97,8.46540428]
[1735743722414,2.6227,191.02,190.98,2.6231]
[1735743723211,2.6227,191.02,190.97,8.46540428]
[1735743723411,2.6227,191.02,190.97,11.08860428]
[1735743723712,8.46540428,191.01,190.95,8.46540428]
[1735743723917,8.46540428,191.01,190.95,11.08880428]
[1735743724213,8.46540428,191.03,190.97,8.46540428]
[1735743725414,2.6227,191.02,190.97,11.08850428]
[1735743726418,11.08790428,191.03,190.99,2.623]
[1735743726713,8.46540428,191.05,190.99,8.46540428]
[1735743727714,11.08770428,191.05,191.01,2.6227]
[1735743728221,8.46540428,191.07,190.99,8.46540428]
[1735743729414,2.622,191.06,191.02,2.6226]
[1735743730120,1.5438,191.1,191.01,8.46540428]
[1735743730319,11.08730428,191.08,191.03,2.6224]
[1735743730822,11.08730428,191.08,191.04,2.6223]
[1735743731730,2.622,191.07,191.03,2.6224]
[1735743732028,11.08740428,191.07,191.03,2.6224]
[1735743732528,8.46540428,191.07,191.03,2.6224]
[1735743733131,8.46540428,191.07,191.01,8.46540428]
[1735743733320,2.6221,191.06,191.01,11.08800428]
[1735743734131,2.6221,191.06,191.01,8.46540428]
[1735743734329,2.6221,191.06,191.02,2.6225]
[1735743735927,8.46540428,191.07,191.01,8.46540428]
[1735743736126,8.46540428,191.05,190.94,1.5627]
[1735743736326,8.46540428,191.05,190.97,8.46540428]
[1735743736531,3.04,191.06,190.97,8.46540428]
[1735743736733,11.50540428,191.06,190.99,8.46540428]
[1735743737534,2.6222,191.05,191.01,2.6227]
[1735743737930,11.50540428,191.06,190.99,8.46540428]
[1735743738135,11.50540428,191.06,191.0,8.46540428]
[1735743738535,3.04,191.06,191.02,8.46540428]
[1735743738730,11.08720428,191.08,191.02,8.46540428]
[1735743738930,8.46540428,191.08,191.02,8.46540428]
[1735743740431,2.6219,191.07,191.03,2.6223]
[1735743741134,11.08720428,191.08,191.04,2.6223]
[1735743741538,8.46540428,191.08,191.02,8.46540428]
[1735743741735,8.46540428,191.08,191.0,11.50540428]
[1735743742235,2.6221,191.06,191.0,11.50540428]
[1735743742936,2.6221,191.06,191.02,2.6225]
[1735743743640,2.6222,191.05,191.01,2.6227]
[1735743744041,2.6222,191.05,191.02,2.6226]
[1735743746138,11.08750428,191.06,191.02,2.6226]
[1735743746941,8.46540428,191.06,191.03,2.6224]
[1735743748649,8.46540428,191.06,191.0,11.50540428]
[1735743748944,8.46540428,191.06,191.04,2.6223]
[1735743749536,8.46540428,191.08,191.02,8.46540428]
[1735743749739,8.46540428,191.08,191.05,2.6222]
[1735743750341,11.08720428,191.08,191.04,2.6223]
[1735743750546,11.08720428,191.08,191.0,3.04]
[1735743750547,8.46540428,191.08,191.0,11.50540428]
[1735743752149,2.6222,191.05,191.0,14.12810428]
[1735743752643,2.6222,191.05,191.0,11.50540428]
[1735743752844,2.622,191.07,191.0,11.50540428]
[1735743753145,2.622,191.07,191.02,8.46540428]
[1735743753547,2.622,191.07,191.0,3.04]
[1735743753749,2.622,191.07,191.01,8.46540428]
[1735743754148,2.6221,191.06,191.03,2.6223]
[1735743754348,2.6221,191.06,191.01,8.46540428]
[1735743755449,2.6221,191.06,191.02,2.6225]
[1735743755649,8.46540428,191.08,191.02,2.6225]
[1735743756051,8.46540428,191.06,191.0,5.6628]
[1735743756652,2.6224,191.04,191.0,5.6628]
[1735743756953,8.46540428,191.08,191.01,8.46540428]
[1735743758153,8.46540428,191.06,191.0,3.04]
[1735743758748,2.6222,191.05,191.01,2.6227]
[1735743760854,3.04,191.09,191.0,11.50540428]
[1735743761044,8.46540428,191.08,191.0,11.50540428]
[1735743762652,11.08720428,191.08,191.04,2.6222]
[1735743763849,2.6219,191.07,191.03,2.6224]
[1735743764255,8.46540428,191.06,190.98,11.50540428]
[1735743764451,8.46540428,191.03,190.95,49.93408042]
[1735743764656,8.46540428,191.01,190.96,5.07114261]
[1735743765055,8.46540428,191.01,190.95,58.3994847]
[1735743765256,11.08820428,191.01,190.96,2.6233]
[1735743766555,3.04,191.06,190.97,8.46540428]
[1735743766749,8.46540428,191.05,190.97,8.46540428]
[1735743767454,2.6224,191.04,191.0,2.6228]
[1735743769659,8.46540428,191.03,190.97,11.50540428]
[1735743769860,11.08790428,191.03,190.97,11.50540428]
[1735743770360,8.46540428,191.03,190.99,2.6229]
[1735743770558,2.6226,191.02,190.97,11.50540428]
[1735743771559,2.6226,191.02,190.97,14.12850428]
[1735743772655,2.6226,191.02,190.98,2.6231]
[1735743774756,2.6227,191.01,190.96,2.6233]
[1735743774964,11.08810428,191.01,190.95,58.3994847]
[1735743776057,11.08810428,191.01,190.95,49.93408042]
[1735743776258,2.6229,191.0,190.95,52.55758042]
[1735743776761,2.6229,191.0,190.95,49.93408042]
[1735743778161,8.46540428,191.01,190.95,49.93408042]
[1735743778459,2.623,190.99,190.95,49.93408042]
[1735743778664,2.623,190.99,190.94,2.6236]
[1735743778858,8.46540428,190.99,190.93,8.46540428]
[1735743779161,2.6232,190.98,190.93,8.46540428]
[1735743779867,2.6232,190.98,190.92,2.6238]
[1735743779868,8.46540428,190.97,190.92,2.6238]
[1735743780058,8.46540428,190.97,190.9,2.6241]
[1735743780261,8.46540428,190.97,190.89,11.50540428]
[1735743780457,8.46540428,190.97,190.92,2.6238]
[1735743780660,8.46540428,190.97,190.91,8.46540428]
[1735743781160,8.46540428,190.97,190.93,2.6238]
[1735743781358,11.08840428,190.99,190.91,8.46540428]
[1735743782455,11.08840428,190.99,190.94,2.6236]
[1735743783564,11.08840428,190.99,190.91,8.46540428]
[1735743783867,8.46540428,190.97,190.85,5.61027655]
[1735743784058,8.46540428,190.97,190.89,8.46540428]
[1735743784260,8.46540428,190.97,190.91,8.46540428]
[1735743785262,2.6233,190.98,190.91,8.46540428]
[1735743785666,8.46540428,190.99,190.91,8.46540428]
[1735743786269,11.08850428,190.99,190.93,2.6238]
[1735743786768,8.46540428,190.99,190.93,2.6238]
[1735743786966,2.6232,190.98,190.93,2.6238]
[1735743787767,8.46540428,190.99,190.91,8.46540428]
[1735743788071,2.6233,190.97,190.92,2.624]
[1735743789971,2.6235,190.96,190.91,8.46540428]
[1735743790367,8.46540428,190.97,190.91,8.46540428]
[1735743790573,2.6236,190.95,190.91,8.46540428]
[1735743790771,8.46540428,190.97,190.92,2.6239]
[1735743792476,11.08870428,190.97,190.92,2.6239]
[1735743793373,1.5386,191.03,190.93,8.46540428]
[1735743793671,11.08830428,191.0,190.93,8.46540428]
[1735743794275,2.623,190.99,190.94,2.6236]
[1735743794774,8.46540428,190.98,190.91,3.04]
[1735743794978,2.6234,190.96,190.91,8.46540428]
[1735743796075,2.6234,190.96,190.91,11.08940428]
[1735743796876,2.6234,190.96,190.92,2.6239]
[1735743797277,2.6233,190.97,190.92,2.6239]
[1735743797477,8.46540428,190.98,190.91,8.46540428]
[1735743798179,11.08850428,190.98,190.93,2.6238]
[1735743798478,8.46540428,190.98,190.91,8.46540428]
[1735743799577,2.6234,190.96,190.92,2.6239]
[1735743801380,2.6234,190.96,190.91,2.6241]
[1735743801681,2.6236,190.95,190.91,2.6241]
[1735743801983,8.46540428,190.98,190.91,2.6241]
[1735743803384,2.6235,190.96,190.91,2.6241]
[1735743805086,2.6236,190.95,190.91,2.6241]
[1735743805381,8.46540428,190.94,190.85,8.65027655]
[1735743805582,8.46540428,190.92,190.86,8.46540428]
[1735743805783,2.6242,190.91,190.88,2.6245]
[1735743806386,8.46540428,190.92,190.88,2.6245]
[1735743806685,11.08940428,190.92,190.88,2.6245]
[1735743810987,2.6238,190.93,190.89,2.6242]
[1735743811287,11.50540428,190.96,190.88,8.46540428]
[1735743811491,8.46540428,190.94,190.86,8.46540428]
[1735743812490,2.624,190.92,190.88,2.6245]
[1735743812884,11.08940428,190.92,190.88,2.6245]
[1735743813088,2.6241,190.91,190.87,2.6246]
[1735743813292,8.46540428,190.92,190.86,8.46540428]
[1735743813493,8.46540428,190.92,190.85,2.46267655]
[1735743813889,2.6243,190.9,190.86,2.6246]
[1735743814093,8.46540428,190.92,190.85,2.46267655]
[1735743814694,8.46540428,190.92,190.86,8.46540428]
[1735743814993,8.46540428,190.94,190.86,8.46540428]
[1735743815296,3.04,190.95,190.88,8.46540428]
[1735743816397,2.6236,190.95,190.91,2.624]
[1735743818301,2.6228,191.01,190.94,2.6236]
[1735743818492,8.46540428,191.01,190.95,8.46540428]
[1735743819997,11.08830428,191.01,190.96,2.6234]
[1735743820396,8.46540428,191.01,190.95,8.46540428]
[1735743820695,10.03800428,191.03,190.97,8.46540428]
[1735743820895,10.58585669,191.07,190.99,8.46540428]
[1735743821094,2.6219,191.07,191.02,2.6225]
[1735743821295,95.92444057,191.08,191.01,8.46540428]
[1735743821893,8.46540428,191.08,191.01,8.46540428]
[1735743822394,8.46540428,191.08,191.04,2.6222]
[1735743824098,8.46540428,191.06,191.01,8.46540428]
[1735743824901,11.08740428,191.06,191.01,8.46540428]
[1735743826397,11.08740428,191.06,191.01,11.08810428]
[1735743827001,8.46540428,191.06,191.03,2.6224]
[1735743827499,2.6219,191.08,191.03,2.6224]
[1735743827701,11.08700428,191.09,191.03,8.46540428]
[1735743828110,11.08700428,191.09,191.03,11.08770428]
[1735743828297,11.08700428,191.09,191.03,8.46540428]
[1735743828500,8.46540428,191.09,191.03,8.46540428]
[1735743828698,8.46540428,191.11,191.06,2.6219]
[1735743829103,2.6214,191.11,191.06,2.6219]
[1735743829302,11.08680428,191.11,191.06,2.6219]
[1735743829898,8.46540428,191.11,191.05,8.46540428]
[1735743830205,2.6215,191.1,191.05,2.622]
[1735743830802,2.6215,191.1,191.04,3.04]
[1735743830999,2.6215,191.1,191.06,2.622]
[1735743832501,2.6215,191.1,191.05,2.6221]
[1735743833204,2.6215,191.1,191.04,3.04]
[1735743833404,2.6215,191.1,191.06,2.622]
[1735743833602,2.6216,191.09,191.04,3.04]
[1735743833803,8.46540428,191.11,191.04,3.04]
[1735743834104,8.46540428,191.11,191.05,2.6221]
[1735743834503,2.6216,191.1,191.05,2.6221]
[1735743835006,8.46540428,191.11,191.07,2.6219]
[1735743836602,11.08680428,191.11,191.07,2.6219]
[1735743837806,8.46540428,191.11,191.07,2.6219]
[1735743838806,1.5719,191.15,191.07,8.46540428]
[1735743839004,8.46540428,191.14,191.09,8.46540428]
[1735743839508,1.5719,191.15,191.09,8.46540428]
[1735743839807,4.1928,191.15,191.1,2.6215]
[1735743840105,1.5719,191.15,191.1,2.6215]
[1735743840499,8.46540428,191.14,191.09,2.6216]
[1735743841413,2.6211,191.13,191.09,2.6216]
[1735743842312,8.46540428,191.14,191.04,3.04]
[1735743842512,2.6212,191.12,191.07,2.6219]
[1735743843605,2.6212,191.12,191.08,8.46540428]
[1735743843810,2.6211,191.13,191.08,8.46540428]
[1735743844311,2.6211,191.13,191.06,3.04]
[1735743844510,2.6211,191.13,191.07,8.46540428]
[1735743844712,10.03730428,191.15,191.07,8.46540428]
[1735743844912,10.03730428,191.15,191.09,8.46540428]
[1735743845310,3.04,191.2,191.11,8.46540428]
[1735743845609,8.46540428,191.17,191.11,8.46540428]
[1735743846211,8.46540428,191.19,191.11,8.46540428]
[1735743846405,2.6204,191.18,191.13,2.6211]
[1735743846909,8.46540428,191.17,191.13,2.6211]
[1735743847106,8.46540428,191.15,191.09,8.46540428]
[1735743847706,11.08600428,191.17,191.11,8.46540428]
[1735743848317,2.6206,191.17,191.13,2.6211]
[1735743848618,11.08580428,191.18,191.11,8.46540428]
[1735743848808,11.08580428,191.18,191.13,2.6211]
[1735743849319,4.6588,191.25,191.13,8.46540428]
[1735743849512,2.6203,191.19,191.14,2.6208]
[1735743850414,2.6203,191.19,191.14,14.12620428]
[1735743851018,2.6203,191.19,191.15,2.6208]
[1735743851409,216.4874978,191.35,191.18,8.46540428]
[1735743851615,8.46540428,191.28,191.21,8.46540428]
[1735743851913,8.46540428,191.28,191.22,3.04]
[1735743852320,4.7535,191.33,191.25,8.46540428]
[1735743852516,8.46540428,191.31,191.25,8.46540428]
[1735743853316,11.08400428,191.31,191.25,11.08480428]
[1735743853513,8.46540428,191.31,191.25,11.08480428]
[1735743853718,8.46540428,191.31,191.25,8.46540428]
[1735743853920,8.46540428,191.29,191.23,8.46540428]
[1735743854420,8.46540428,191.3,191.23,8.46540428]
[1735743855216,2.6192,191.27,191.15,4.693]
[1735743855419,8.46540428,191.26,191.2,8.46540428]
[1735743855610,8.46540428,191.22,191.17,8.46540428]
[1735743855816,2.6201,191.2,191.17,8.46540428]
[1735743856321,2.62,191.21,191.17,8.46540428]
[1735743856620,8.46540428,191.22,191.16,3.04]
[1735743856813,2.6202,191.2,191.16,3.04]
[1735743858122,2.6202,191.2,191.15,8.46540428]
[1735743858325,16.40978154,191.24,191.12,13.16898154]
[1735743858630,16.40978154,191.24,191.13,3.04]
[1735743859324,2.6204,191.18,191.13,5.6611]
[1735743859914,2.6207,191.16,191.11,5.0805441]
[1735743860120,3.04,191.2,191.11,5.4992441]
[1735743860621,2.6209,191.14,191.09,15.79048154]
[1735743860913,3.04,191.2,191.09,5.6615]
[1735743861123,2.6209,191.15,191.09,5.6615]
[1735743861320,3.04,191.2,191.09,5.6615]
[1735743861726,2.6212,191.12,191.07,2.6218]
[1735743861918,13.16898154,191.18,191.06,16.20898154]
[1735743862119,3.0464,191.17,191.07,2.6219]
[1735743862320,2.6212,191.13,191.07,2.6219]
[1735743862617,3.0464,191.17,191.07,2.6219]
[1735743863318,2.6214,191.11,191.06,16.20898154]
[1735743863528,16.20898154,191.15,191.06,3.04]
[1735743863724,16.20898154,191.15,191.04,3.04]
[1735743863922,16.20898154,191.15,191.03,16.20898154]
[1735743864224,2.6217,191.09,191.04,2.6223]
[1735743864725,16.20898154,191.15,191.04,2.6223]
[1735743865919,2.6216,191.09,191.04,2.6223]
[1735743866230,13.16898154,191.12,191.01,3.04]
[1735743867117,13.16898154,191.09,191.01,3.04]
[1735743867321,1.4927,191.08,190.99,3.04]
[1735743867623,2.6225,191.03,190.97,15.79218154]
[1735743868221,1.5372,191.07,190.97,13.16898154]
[1735743868423,2.6227,191.02,190.96,5.6634]
[1735743868726,3.04,191.05,190.96,3.04]
[1735743869025,2.6229,191.0,190.96,3.04]
[1735743869226,13.16898154,191.03,190.92,53.21181083]
[1735743869525,13.16898154,191.03,190.93,3.04]
[1735743869931,2.6229,191.0,190.94,2.6237]
[1735743871827,3.04,191.05,190.93,3.04]
[1735743872125,2.6227,191.02,190.93,3.04]
[1735743872330,2.6227,191.02,190.94,13.16898154]
[1735743873227,13.16898154,191.05,190.94,13.16898154]
[1735743873429,3.04,191.06,190.97,13.16898154]
[1735743873727,3.04,191.06,190.98,3.04]
[1735743873922,2.6222,191.05,191.0,2.6228]
[1735743874527,3.04,191.06,191.0,2.6228]
[1735743874723,5.662,191.06,191.01,2.6226]
[1735743874930,3.0989,191.08,190.98,3.04]
[1735743875429,2.6219,191.07,191.02,2.6226]
[1735743875628,3.0989,191.08,190.98,3.04]
[1735743876226,2.622,191.06,191.01,2.6227]
[1735743876428,3.0989,191.08,190.98,3.04]
[1735743877028,3.04,191.1,191.0,13.16898154]
[1735743877330,2.6216,191.09,191.04,2.6222]
[1735743877532,3.04,191.1,191.0,13.16898154]
[1735743877925,5.6615,191.1,191.04,2.6222]
[1735743878225,13.16898154,191.11,191.04,2.6222]
[1735743879530,2.6216,191.09,191.04,2.6222]
[1735743881131,2.6216,191.09,191.05,2.6222]
[1735743881325,13.16898154,191.14,191.05,2.6222]
[1735743881520,2.6215,191.1,191.05,2.6222]
[1735743883228,13.16898154,191.14,191.03,3.04]
[1735743883423,2.6213,191.12,191.07,2.6218]
[1735743883619,2.6213,191.12,191.03,3.04]
[1735743885731,2.6213,191.12,191.03,16.20898154]
[1735743886432,2.6213,191.12,191.07,2.6219]
[1735743886633,2.6211,191.13,191.03,16.20898154]
[1735743887531,2.6211,191.13,191.08,2.6217]
[1735743888930,3.04,191.16,191.08,2.6217]
[1735743889132,2.6212,191.12,191.08,2.6217]
[1735743890835,2.6214,191.11,191.06,2.6219]
[1735743891035,13.16898154,191.12,191.03,3.04]
[1735743891631,13.16898154,191.12,191.04,2.6222]
[1735743892435,13.16898154,191.09,190.97,13.16898154]